bitfinex-derivatives/quotes_SOLF0:USTF0_20240904
["timestamp","ask_amount","ask_price","bid_price","bid_amount"]
[1725454154720,0.05566668,129.22,129.19,0.05468041]
[1725454154923,29.65,129.21,129.19,0.05468041]
[1725454155425,3.8701,129.2,129.19,0.05468041]
[1725454156328,5.3296,129.2,129.19,0.05468041]
[1725454160043,1.4595,129.2,129.19,0.05468041]
[1725454160521,1.4595,129.2,129.12,1.4254]
[1725454160729,3.8711,129.17,129.12,1.4254]
[1725454161029,29.65,129.19,129.13,3.872]
[1725454161229,29.65,129.16,129.13,3.872]
[1725454161527,33.58084655,129.16,129.13,3.92929096]
[1725454161926,33.58084655,129.16,129.13,0.05729096]
[1725454161927,33.60395705,129.16,129.13,0.05729096]
[1725454162124,3.8719,129.15,129.13,0.05729096]
[1725454162323,33.60395705,129.16,129.13,0.05729096]
[1725454162324,29.65,129.14,129.13,0.05729096]
[1725454162724,33.5219,129.14,129.13,0.05729096]
[1725454164724,33.5219,129.14,129.09,3.8733]
[1725454164725,3.8727,129.12,129.09,3.8733]
[1725454165234,29.65,129.13,129.02,1.3313]
[1725454165426,3.8733,129.1,129.04,1.3727]
[1725454165823,0.05711673,129.08,129.06,0.05783]
[1725454166229,0.05711673,129.08,129.07,3.874]
[1725454167031,0.05711673,129.08,129.06,0.05783]
[1725454167437,3.874,129.07,129.06,0.05783]
[1725454167923,33.524,129.07,129.06,0.05783]
[1725454168123,3.8748,129.05,128.98,4.1058]
[1725454168322,29.65,129.05,128.98,4.1058]
[1725454168728,3.8758,129.02,128.98,5.2619]
[1725454168928,3.8758,129.02,128.98,1.3854]
[1725454169130,0.05030856,129.01,128.99,0.0589977]
[1725454170735,3.92630856,129.01,128.99,0.0589977]
[1725454171728,0.05030856,129.01,128.99,3.9353977]
[1725454172338,0.05030856,129.01,128.99,0.0589977]
[1725454172938,3.92620856,129.01,128.99,0.0589977]
[1725454173437,0.05030856,129.01,128.99,0.0589977]
[1725454174637,3.82986972,129.0,128.99,0.0589977]
[1725454175029,7.70596972,129.0,128.99,0.0589977]
[1725454175439,3.8761,129.0,128.99,0.0589977]
[1725454175834,3.92620856,129.01,128.99,0.0589977]
[1725454176038,0.05030856,129.01,128.99,0.0589977]
[1725454176838,0.05030856,129.01,128.99,3.9351977]
[1725454177544,3.92630856,129.01,128.99,0.0589977]
[1725454178749,0.05030856,129.01,129.0,3.8761]
[1725454179136,0.05030856,129.01,128.99,3.9352977]
[1725454179531,3.8756,129.02,128.99,0.0589977]
[1725454179733,33.46357921,129.05,128.96,31.0308]
[1725454179938,27.63357921,129.05,128.97,25.1938]
[1725454180133,23.82,129.07,128.98,23.82]
[1725454180441,0.05405135,129.04,129.01,0.05356678]
[1725454181240,0.05405135,129.04,129.03,3.8752]
[1725454181641,3.94938769,129.13,129.03,23.82]
[1725454181846,1.3193,129.2,129.11,23.82]
[1725454182042,23.82,129.21,129.12,23.82]
[1725454182350,3.78042164,129.21,129.18,3.8705]
[1725454182644,0.05833683,129.21,129.18,3.92410838]
[1725454183040,23.82,129.19,129.18,0.05360838]
[1725454183343,3.83682078,129.21,129.18,0.05360838]
[1725454183344,23.87833683,129.21,129.18,0.05360838]
[1725454183745,3.88079367,129.2,129.18,0.05360838]
[1725454183942,33.66843683,129.21,129.18,0.05360838]
[1725454184143,29.74,129.19,129.18,0.05360838]
[1725454184346,33.71225236,129.19,129.18,0.05360838]
[1725454184841,37.58265236,129.19,129.18,0.05360838]
[1725454185142,33.71225236,129.19,129.07,31.1708]
[1725454185346,29.74,129.17,129.08,1.4543]
[1725454185942,0.05552264,129.14,129.13,3.8719]
[1725454187446,0.05552264,129.14,129.12,0.05038481]
[1725454187837,0.05552264,129.14,129.13,3.8722]
[1725454189037,0.05552264,129.14,129.12,0.05038481]
[1725454190446,0.05552264,129.14,129.12,3.92278481]
[1725454191247,0.05552264,129.14,129.13,3.8722]
[1725454191552,0.05552264,129.14,129.12,0.05038481]
[1725454192152,0.05552264,129.14,129.12,3.92278481]
[1725454192748,0.05552264,129.14,129.12,0.05038481]
[1725454192945,29.74,129.13,129.12,0.05038481]
[1725454193546,33.6122,129.13,129.12,0.05038481]
[1725454194548,3.8722,129.13,129.12,0.05038481]
[1725454195354,33.6122,129.13,129.12,0.05038481]
[1725454196661,0.05552264,129.14,129.12,0.05038481]
[1725454197156,3.8722,129.13,129.12,0.05038481]
[1725454197356,29.79552264,129.14,129.05,3.80133271]
[1725454197553,29.74,129.11,129.02,2.7572]
[1725454197754,33.613,129.11,129.08,3.8735]
[1725454198058,3.92694413,129.1,129.08,3.8735]
[1725454198558,3.98000548,129.1,129.08,3.92480715]
[1725454199156,0.05306135,129.1,129.09,3.8734]
[1725454200459,0.05306135,129.1,129.08,3.92490715]
[1725454200661,0.05306135,129.1,129.08,0.05130715]
[1725454201457,29.79306135,129.1,129.08,0.05130715]
[1725454201758,29.79306135,129.1,128.85,8.09125133]
[1725454201759,29.74,129.1,128.97,29.74]
[1725454201964,29.74,129.06,128.97,29.74]
[1725454202260,29.74,129.08,128.99,29.74]
[1725454202455,33.6138,129.08,129.05,3.8745]
[1725454202756,33.6138,129.08,129.05,0.04201734]
[1725454202757,0.05368092,129.08,129.05,0.04201734]
[1725454202963,0.05368092,129.08,129.07,3.874]
[1725454203366,227.0,129.13,129.06,29.74]
[1725454203552,230.88531576,129.13,129.06,29.74]
[1725454203758,230.88531576,129.13,129.1,3.873]
[1725454204058,230.88531576,129.13,129.06,29.74]
[1725454204259,227.0,129.13,129.06,29.74]
[1725454204464,0.05644861,129.11,129.08,0.05250793]
[1725454205455,0.05644861,129.11,129.1,3.873]
[1725454206156,4.1854,129.18,129.08,29.79250793]
[1725454206357,8.00938012,129.18,129.08,29.74]
[1725454206565,10.50218012,129.18,129.08,29.74]
[1725454206868,6.63128012,129.18,129.07,3.88363902]
[1725454207068,3.872,129.14,129.07,3.88363902]
[1725454207265,3.92985016,129.14,129.11,0.04913612]
[1725454207765,3.92985016,129.14,129.11,3.92193612]
[1725454209262,0.05785016,129.14,129.12,3.8725]
[1725454209461,0.05785016,129.14,129.11,0.04913612]
[1725454209961,0.05785016,129.14,129.13,3.8722]
[1725454210357,0.05785016,129.14,129.11,0.04913612]
[1725454210358,0.05785016,129.14,129.12,3.8724]
[1725454210562,0.05785016,129.14,129.11,0.04913612]
[1725454210963,0.05785016,129.14,129.13,3.8722]
[1725454211669,29.79785016,129.14,129.11,0.04913612]
[1725454212061,0.05785016,129.14,129.11,0.04913612]
[1725454212861,0.05785016,129.14,129.13,3.8722]
[1725454213770,0.05785016,129.14,129.11,0.04913612]
[1725454214471,0.05785016,129.14,129.13,3.8722]
[1725454214766,0.05785016,129.14,129.11,0.04913612]
[1725454214767,0.05785016,129.14,129.12,3.8724]
[1725454215163,0.05785016,129.14,129.11,0.04913612]
[1725454215362,0.05785016,129.14,129.11,3.92183612]
[1725454215564,3.92995016,129.14,129.11,3.92183612]
[1725454215870,0.05785016,129.14,129.12,3.8725]
[1725454217073,3.92975016,129.14,129.12,3.8725]
[1725454218568,3.92975016,129.14,129.11,3.92173612]
[1725454219172,3.8723,129.13,129.11,3.92173612]
[1725454219374,29.79785016,129.14,129.11,0.04913612]
[1725454219667,3.8722,129.13,129.11,0.04913612]
[1725454219876,29.79785016,129.14,129.11,0.04913612]
[1725454221170,3.8722,129.13,129.11,0.04913612]
[1725454221365,29.79785016,129.14,129.11,0.04913612]
[1725454221366,0.05785016,129.14,129.11,0.04913612]
[1725454221562,42.78868232,129.34,129.12,29.74]
[1725454221563,3.82040753,129.19,129.12,29.74]
[1725454221771,3.82040753,129.19,129.13,29.74]
[1725454221972,3.82040753,129.19,129.18,3.8707]
[1725454222176,33.56040753,129.19,129.11,3.94243433]
[1725454222375,33.56040753,129.19,129.15,3.8716]
[1725454222676,0.0511664,129.18,129.16,0.05647791]
[1725454223068,7.81646478,129.18,129.16,0.05647791]
[1725454223275,7.81646478,129.18,129.16,3.92767791]
[1725454223479,0.0511664,129.18,129.16,0.05647791]
[1725454223865,0.0511664,129.18,129.17,3.871]
[1725454226767,1.4289,129.26,129.17,29.74]
[1725454226972,3.8687,129.25,129.17,29.74]
[1725454227472,31.1779,129.27,129.17,29.74]
[1725454227672,0.05080009,129.23,129.21,0.0571815]
[1725454228166,29.79080009,129.23,129.21,0.0571815]
[1725454228570,3.8695,129.22,129.21,0.0571815]
[1725454228772,29.79080009,129.23,129.21,0.0571815]
[1725454228974,3.92030009,129.23,129.21,0.0571815]
[1725454229173,0.05080009,129.23,129.21,0.0571815]
[1725454230985,0.05080009,129.23,129.22,3.8695]
[1725454231283,4.01023025,129.23,129.21,0.0571815]
[1725454231578,3.8695,129.22,129.21,0.0571815]
[1725454231981,7.70156875,129.22,129.21,0.0571815]
[1725454232380,3.8695,129.22,129.21,0.0571815]
[1725454232984,0.05080009,129.23,129.21,0.0571815]
[1725454233683,3.92010009,129.23,129.21,0.0571815]
[1725454234078,0.05080009,129.23,129.21,0.0571815]
[1725454234681,3.92010009,129.23,129.21,0.0571815]
[1725454235485,0.05080009,129.23,129.21,3.9269815]
[1725454235897,3.92000009,129.23,129.21,3.9269815]
[1725454236189,3.92000009,129.23,129.21,0.0571815]
[1725454237087,3.8695,129.22,129.21,0.0571815]
[1725454239487,33.6095,129.22,129.21,0.0571815]
[1725454239886,3.8705,129.19,129.17,3.8709]
[1725454240187,3.8705,129.19,129.11,41.34618313]
[1725454240188,5.23726292,129.24,129.11,3.86108313]
[1725454240391,5.23726292,129.24,129.08,1.4036]
[1725454240392,29.74,129.18,129.08,4.2182]
[1725454240581,29.74,129.18,129.08,8.03981659]
[1725454240891,0.05820805,129.14,129.13,3.872]
[1725454241087,0.05132977,129.15,129.13,3.872]
[1725454241285,0.05132977,129.15,129.12,0.04970905]
[1725454241684,0.05132977,129.15,129.14,3.8719]
[1725454243890,29.74,129.22,129.13,29.74]
[1725454244095,33.6098,129.22,129.14,1.3795]
[1725454244284,33.6098,129.22,129.15,3.85377753]
[1725454244683,3.8698,129.21,129.18,3.8705]
[1725454245192,3.92934892,129.21,129.18,3.92814721]
[1725454246295,3.8701,129.2,129.18,0.05764721]
[1725454246494,29.74,129.2,129.18,0.05764721]
[1725454246988,3.8704,129.19,129.18,0.05764721]
[1725454247189,0.05954892,129.21,129.18,0.05764721]
[1725454247788,3.8701,129.2,129.18,0.05764721]
[1725454248195,0.05954892,129.21,129.18,0.05764721]
[1725454248391,0.05954892,129.21,129.2,3.8701]
[1725454250501,33.6082,129.27,129.17,31.1274]
[1725454250691,33.6082,129.27,129.19,29.74]
[1725454251099,29.74,129.27,129.19,29.74]
[1725454251499,0.05506857,129.24,129.23,3.8692]
[1725454256716,0.05506857,129.24,129.22,3.92301136]
[1725454259212,0.05506857,129.24,129.23,3.8692]
[1725454262217,29.79506857,129.24,129.22,0.05361136]
[1725454262409,29.74,129.24,129.12,29.74]
[1725454262611,3.8702,129.2,129.17,3.8709]
[1725454263419,0.05289139,129.2,129.17,0.05192205]
[1725454264126,3.92319139,129.2,129.17,3.92282205]
[1725454264726,0.05289139,129.2,129.17,0.05192205]
[1725454265219,0.05289139,129.2,129.18,3.8706]
[1725454266115,0.05289139,129.2,129.19,3.8704]
[1725454266317,0.05289139,129.2,129.17,0.05192205]
[1725454266621,0.05289139,129.2,129.18,3.8706]
[1725454267028,0.05289139,129.2,129.17,0.05192205]
[1725454267217,3.92299139,129.2,129.17,0.05192205]
[1725454268328,3.92299139,129.2,129.18,3.8707]
[1725454269533,0.05289139,129.2,129.18,3.8707]
[1725454272038,0.05289139,129.2,129.19,7.82208782]
[1725454272333,1.3552,129.26,129.18,31.1506]
[1725454272634,5.2237,129.26,129.18,38.8917]
[1725454273031,33.64131578,129.29,129.2,29.74]
[1725454273234,0.05661834,129.26,129.23,0.0529626]
[1725454274335,0.05661834,129.26,129.25,3.8686]
[1725454276440,0.05661834,129.26,129.24,3.8688]
[1725454276632,0.05661834,129.26,129.23,0.0529626]
[1725454277239,3.8689,129.24,129.23,0.0529626]
[1725454278332,5.2533,129.24,129.23,0.0529626]
[1725454278941,3.8698,129.21,129.15,32.4884]
[1725454279245,3.8698,129.21,129.16,3.84540695]
[1725454279440,3.8698,129.21,129.15,32.4884]
[1725454279637,3.8703,129.2,129.15,1.341]
[1725454279941,0.05432388,129.19,129.16,0.04938884]
[1725454280140,0.05432388,129.19,129.16,3.86537653]
[1725454280536,0.05432388,129.19,129.18,3.8707]
[1725454281341,0.05432388,129.19,129.16,3.92058884]
[1725454281549,0.05432388,129.19,129.16,0.04938884]
[1725454281932,0.05432388,129.19,129.18,3.8707]
[1725454287246,0.05432388,129.19,129.16,0.04938884]
[1725454287647,0.05432388,129.19,129.18,3.8707]
[1725454288755,0.05432388,129.19,129.17,3.871]
[1725454289153,0.05432388,129.19,129.16,0.04938884]
[1725454289348,0.05432388,129.19,129.17,3.871]
[1725454290248,0.05432388,129.19,129.18,3.8707]
[1725454294061,1.3844,129.24,129.22,3.8694]
[1725454294961,1.3844,129.24,129.23,3.8692]
[1725454295256,0.05592032,129.25,129.22,0.04888457]
[1725454296047,0.05592032,129.25,129.24,3.8689]
[1725454297651,1.4029,129.3,129.29,3.8674]
[1725454297852,1.4029,129.3,129.22,29.74]
[1725454298649,5.27,129.3,129.27,3.8678]
[1725454298849,1.45966354,129.3,129.27,0.05011648]
[1725454299961,1.45966354,129.3,129.27,3.91791648]
[1725454299962,5.32696354,129.3,129.27,3.91791648]
[1725454300562,1.45966354,129.3,129.28,3.8676]
[1725454301050,0.05676354,129.3,129.28,3.8676]
[1725454301250,0.05676354,129.3,129.27,0.05011648]
[1725454301451,3.92396354,129.3,129.27,0.05011648]
[1725454302254,3.92396354,129.3,129.28,3.8676]
[1725454304958,3.92396354,129.3,129.27,3.91801648]
[1725454305160,3.92396354,129.3,129.27,0.05011648]
[1725454305558,3.92396354,129.3,129.28,3.8676]
[1725454305859,3.92396354,129.3,129.27,0.05011648]
[1725454306963,3.92396354,129.3,129.28,3.8677]
[1725454307359,0.05676354,129.3,129.27,0.05011648]
[1725454307558,0.05676354,129.3,129.27,3.91811648]
[1725454307961,3.8676,129.29,129.27,3.91811648]
[1725454308163,3.8676,129.29,129.27,0.05011648]
[1725454308963,3.8676,129.29,129.27,3.91801648]
[1725454309163,3.92406354,129.3,129.27,3.91801648]
[1725454310067,3.8676,129.29,129.27,0.05011648]
[1725454310264,23.81676354,129.3,129.27,0.05011648]
[1725454310563,23.76,129.28,129.1,237.6194]
[1725454310763,3.94336419,129.31,129.17,3.94296989]
[1725454310764,23.76,129.24,129.17,3.94296989]
[1725454310956,27.6294,129.23,129.2,3.87]
[1725454311362,23.76,129.24,129.16,3.78782016]
[1725454311763,23.76,129.24,129.15,23.76]
[1725454311764,0.05024152,129.21,129.19,0.05756402]
[1725454313274,0.05024152,129.21,129.2,3.8701]
[1725454314767,0.05024152,129.21,129.19,3.92786402]
[1725454315166,0.05024152,129.21,129.19,0.05756402]
[1725454316264,0.05024152,129.21,129.2,3.8701]
[1725454318560,0.05024152,129.21,129.19,0.05756402]
[1725454318971,0.05024152,129.21,129.2,3.8701]
[1725454319165,0.05024152,129.21,129.19,0.05756402]
[1725454319362,27.70248602,129.2,129.19,0.05756402]
[1725454319575,47.52,129.2,129.1,23.76]
[1725454319769,23.76,129.17,129.11,2.50193095]
[1725454319969,3.8715,129.16,129.13,3.8721]
[1725454320275,27.62763225,129.17,129.1,23.76]
[1725454320459,27.62763225,129.17,129.09,2.8123]
[1725454320460,2.7458,129.19,129.12,0.05700832]
[1725454320660,0.05168707,129.15,129.12,0.05700832]
[1725454320869,23.76,129.23,129.15,23.76]
[1725454321065,0.05186557,129.2,129.19,3.8703]
[1725454325175,1.4445,129.28,129.18,23.81395582]
[1725454325176,25.2045,129.28,129.18,23.76]
[1725454325372,3.86514882,129.27,129.21,23.76]
[1725454325575,3.86514882,129.27,129.26,3.8683]
[1725454327074,3.86514882,129.27,129.25,3.92641061]
[1725454327372,3.86514882,129.27,129.25,0.05811061]
[1725454327571,26.62575625,129.28,129.26,3.8683]
[1725454327969,3.87886996,129.27,129.26,3.8683]
[1725454330075,26.62575625,129.28,129.27,3.868]
[1725454330282,2.86575625,129.28,129.27,3.868]
[1725454330779,6.74161783,129.28,129.27,3.868]
[1725454331072,2.86575625,129.28,129.27,3.868]
[1725454331277,2.86575625,129.28,129.26,3.8682]
[1725454331480,6.67930992,129.28,129.26,3.8682]
[1725454331676,2.86575625,129.28,129.26,3.8682]
[1725454331875,2.86575625,129.28,129.25,0.05811061]
[1725454332379,0.05705625,129.28,129.27,3.868]
[1725454333884,0.05705625,129.28,129.26,3.8682]
[1725454334784,23.76,129.27,129.25,0.05811061]
[1725454334981,1.3261,129.26,129.19,3.81025485]
[1725454335286,27.6288,129.25,129.22,3.8694]
[1725454335479,29.0897,129.25,129.22,3.8694]
[1725454335673,25.2209,129.25,129.17,13.00075237]
[1725454336079,0.05671667,129.22,129.2,0.0515531]
[1725454336673,0.05671667,129.22,129.21,3.8697]
[1725454336978,0.05671667,129.22,129.2,0.0515531]
[1725454337580,23.81671667,129.22,129.12,23.76]
[1725454337780,3.90501625,129.23,129.12,23.76]
[1725454337781,23.76,129.2,129.17,3.8708]
[1725454337981,23.76,129.2,129.1,25.1327]
[1725454338184,23.76,129.18,129.11,2.49933294]
[1725454338387,27.6309,129.18,129.11,2.49933294]
[1725454338888,0.04995516,129.16,129.13,0.04987843]
[1725454339083,0.04995516,129.16,129.14,3.8719]
[1725454339486,3.92145516,129.16,129.13,0.04987843]
[1725454339687,0.04995516,129.16,129.13,0.04987843]
[1725454340091,0.04995516,129.16,129.15,3.8716]
[1725454342696,23.80995516,129.16,129.13,0.04987843]
[1725454343000,23.80995516,129.16,129.05,2.7933]
[1725454343001,23.76,129.14,129.05,2.8195]
[1725454343194,27.6326,129.12,129.05,2.8195]
[1725454343394,23.76,129.12,129.05,1.4494]
[1725454343596,23.76,129.12,129.03,23.76]
[1725454343790,3.8733,129.1,129.06,3.874]
[1725454343992,0.05466887,129.09,129.07,0.05181671]
[1725454344396,0.05466887,129.09,129.07,3.92571671]
[1725454344999,0.05466887,129.09,129.08,3.8737]
[1725454345899,0.05466887,129.09,129.07,3.92581671]
[1725454346293,0.05466887,129.09,129.07,3.92571671]
[1725454346593,0.05466887,129.09,129.07,0.05181671]
[1725454348592,23.76,129.08,128.99,1.3235]
[1725454348795,23.76,129.03,128.96,2.6772]
[1725454349004,25.2057,129.08,128.84,11.6427]
[1725454349005,3.8762,129.0,128.95,3.8774]
[1725454349506,3.8765,128.99,128.94,3.8777]
[1725454350003,0.05809355,128.98,128.95,0.05612704]
[1725454350210,0.05809355,128.98,128.95,3.93352704]
[1725454352003,0.05809355,128.98,128.95,0.05612704]
[1725454353499,0.05809355,128.98,128.97,3.877]
[1725454357607,0.05809355,128.98,128.96,3.8772]
[1725454359014,0.05809355,128.98,128.97,3.877]
[1725454359611,0.05809355,128.98,128.95,0.05612704]
[1725454361318,0.05809355,128.98,128.96,3.8771]
[1725454362515,0.05809355,128.98,128.97,3.877]
[1725454362712,0.05809355,128.98,128.95,0.05612704]
[1725454363715,3.93499355,128.98,128.95,0.05612704]
[1725454364613,0.05809355,128.98,128.95,3.93372704]
[1725454365217,0.05809355,128.98,128.96,3.8773]
[1725454367714,0.05809355,128.98,128.95,3.93362704]
[1725454368816,0.05809355,128.98,128.96,3.8772]
[1725454369030,0.05809355,128.98,128.95,0.05612704]
[1725454369516,0.05809355,128.98,128.96,3.8772]
[1725454372622,3.93479355,128.98,128.96,3.8772]
[1725454372919,3.93479355,128.98,128.95,3.93362704]
[1725454373227,3.93479355,128.98,128.95,0.05612704]
[1725454373831,0.05809355,128.98,128.95,0.05612704]
[1725454374019,23.84,128.97,128.95,0.05612704]
[1725454374220,25.2898,128.97,128.95,0.05612704]
[1725454374526,3.8773,128.96,128.95,0.05612704]
[1725454376619,7.71825814,128.96,128.95,0.05612704]
[1725454377328,3.8773,128.96,128.95,0.05612704]
[1725454377529,0.05809355,128.98,128.95,0.05612704]
[1725454378537,3.8772,128.97,128.95,0.05612704]
[1725454378732,0.05809355,128.98,128.95,0.05612704]
[1725454379038,3.8773,128.96,128.95,0.05612704]
[1725454379226,7.82153116,128.96,128.95,0.05612704]
[1725454379840,3.8773,128.96,128.95,0.05612704]
[1725454380337,0.05809355,128.98,128.95,0.05612704]
[1725454380636,0.05809355,128.98,128.95,23.89612704]
[1725454380832,0.05809355,128.98,128.97,3.877]
[1725454384544,7.81539324,129.03,129.0,3.8761]
[1725454385237,26.6581,129.06,128.98,3.8225031]
[1725454385433,26.6581,129.06,128.96,23.84]
[1725454385639,0.05198735,129.02,129.0,0.05503795]
[1725454387431,0.05198735,129.02,129.01,3.8758]
[1725454388741,0.05198735,129.02,129.0,3.93093795]
[1725454388941,23.84,129.01,129.0,0.05503795]
[1725454389337,27.7158,129.01,129.0,0.05503795]
[1725454389531,23.84,129.01,129.0,0.05503795]
[1725454389733,27.76768735,129.02,129.0,0.05503795]
[1725454389937,23.89198735,129.02,129.0,0.05503795]
[1725454390741,3.8758,129.01,129.0,0.05503795]
[1725454392048,27.76768735,129.02,129.0,0.05503795]
[1725454394041,3.8758,129.01,129.0,0.05503795]
[1725454395439,0.05198735,129.02,129.0,0.05503795]
[1725454396245,0.05198735,129.02,129.01,3.8758]
[1725454400645,23.89198735,129.02,128.93,7.7564]
[1725454400951,1.401,129.06,128.93,3.82423631]
[1725454400952,23.84,129.0,128.93,3.82423631]
[1725454401346,7.65654341,128.99,128.96,3.8771]
[1725454401749,7.70825283,128.99,128.96,3.92982821]
[1725454402855,23.84,128.97,128.96,0.05272821]
[1725454403652,27.717,128.97,128.96,0.05272821]
[1725454404956,3.8784,128.93,128.9,3.879]
[1725454405156,23.84,128.94,128.9,3.879]
[1725454405545,3.8784,128.93,128.9,3.879]
[1725454405859,5.10874341,128.99,128.91,3.8788]
[1725454406158,0.05232848,128.96,128.94,0.05055928]
[1725454406360,25.2939,129.02,128.94,0.05457586]
[1725454406663,0.05030924,128.99,128.97,0.05457586]
[1725454407254,3.98509076,128.99,128.97,0.05457586]
[1725454407445,0.05030924,128.99,128.97,0.05457586]
[1725454407652,7.82058226,128.99,128.97,0.05457586]
[1725454408565,27.7167,128.98,128.97,0.05457586]
[1725454409756,29.0651,128.98,128.97,0.05457586]
[1725454410464,3.94398226,128.99,128.97,0.05457586]
[1725454411256,3.94398226,128.99,128.97,3.93137586]
[1725454412855,7.82038226,128.99,128.97,3.93137586]
[1725454415153,23.84,128.98,128.9,1.3746]
[1725454415358,1.3189,128.98,128.9,1.3746]
[1725454415659,23.84,128.95,128.9,1.3746]
[1725454415958,23.84,128.95,128.91,3.8787]
[1725454416165,0.05809732,128.94,128.91,3.8787]
[1725454417161,0.05809732,128.94,128.9,3.879]
[1725454417667,0.05809732,128.94,128.93,3.8782]
[1725454418357,0.05809732,128.94,128.92,3.8785]
[1725454418559,0.05809732,128.94,128.91,23.84]
[1725454418765,0.05809732,128.94,128.93,3.8782]
[1725454419160,27.73367302,128.99,128.91,23.84]
[1725454419457,27.73367302,128.99,128.89,1.4422]
[1725454419663,27.73367302,128.99,128.91,23.84]
[1725454420071,0.05327123,128.96,128.94,3.93346517]
[1725454421163,23.89327123,128.96,128.94,0.05576517]
[1725454421471,3.8776,128.95,128.94,0.05576517]
[1725454423470,2.7588,128.95,128.85,1.4316]
[1725454423668,29.82,128.92,128.85,1.4316]
[1725454423872,33.6988,128.92,128.85,1.4316]
[1725454424065,29.82,128.92,128.85,1.4316]
[1725454424573,0.05781135,128.9,128.85,1.4316]
[1725454425171,0.05781135,128.9,128.88,3.8796]
[1725454425666,0.05781135,128.9,128.85,1.4316]
[1725454425871,0.05781135,128.9,128.85,31.2516]
[1725454426169,29.82,128.97,128.92,3.8783]
[1725454426580,29.82,128.97,128.89,3.90518311]
[1725454426781,29.82,128.97,128.89,29.82]
[1725454426979,29.82,128.97,128.89,33.60646803]
[1725454427180,0.05198795,128.94,128.92,0.05318873]
[1725454427670,0.05198795,128.94,128.93,3.878]
[1725454428578,0.05198795,128.94,128.92,3.93148873]
[1725454429182,0.05198795,128.94,128.92,0.05318873]
[1725454429987,33.6982,128.93,128.92,0.05318873]
[1725454430675,33.6982,128.93,128.85,1.4316]
[1725454430676,29.82,128.93,128.85,1.4316]
[1725454431285,3.879,128.91,128.85,1.4316]
[1725454431487,7.78690161,128.91,128.85,1.4316]
[1725454431786,0.05949979,128.89,128.85,1.4316]
[1725454432187,3.93919979,128.89,128.81,31.1851]
[1725454432486,0.05641249,128.86,128.82,1.3693]
[1725454433286,0.05641249,128.86,128.85,3.8806]
[1725454434983,0.05641249,128.86,128.84,3.8809]
[1725454435781,0.05641249,128.86,128.81,1.3509]
[1725454435985,0.05641249,128.86,128.8,3.81183129]
[1725454436186,0.05641249,128.86,128.77,31.1694]
[1725454436378,29.82,128.87,128.77,31.1694]
[1725454436379,0.05645888,128.83,128.77,31.1694]
[1725454436782,0.05645888,128.83,128.77,35.02564214]
[1725454437078,33.72790161,128.91,128.81,29.82]
[1725454437281,37.60690161,128.91,128.82,2.7678]
[1725454437485,33.72790161,128.91,128.82,2.7678]
[1725454437681,3.8799,128.88,128.82,2.7678]
[1725454437992,33.72790161,128.91,128.86,3.8803]
[1725454438185,3.93046462,128.9,128.87,0.05650735]
[1725454438385,0.05126462,128.9,128.87,0.05650735]
[1725454438889,3.8796,128.89,128.87,0.05650735]
[1725454439293,3.93056462,128.9,128.87,0.05650735]
[1725454439597,3.93056462,128.9,128.87,3.93640735]
[1725454439985,3.8795,128.89,128.87,0.05650735]
[1725454440189,0.05126462,128.9,128.87,3.93650735]
[1725454440493,0.05126462,128.9,128.87,0.05650735]
[1725454440693,29.82,128.89,128.87,0.05650735]
[1725454441196,3.8797,128.88,128.87,0.05650735]
[1725454443792,3.8806,128.85,128.83,3.8811]
[1725454444294,29.82,128.88,128.79,2.7706]
[1725454444592,3.8804,128.86,128.79,2.7706]
[1725454444799,29.82,128.88,128.79,2.7706]
[1725454445094,0.05650699,128.84,128.79,1.4423]
[1725454445295,0.05650699,128.84,128.8,29.82]
[1725454446287,0.05650699,128.84,128.83,3.8812]
[1725454450898,3.8793,128.9,128.87,3.8798]
[1725454451297,33.72790161,128.91,128.82,29.82]
[1725454451500,3.8796,128.89,128.86,3.8802]
[1725454452001,3.93407466,128.89,128.86,3.93352734]
[1725454452401,3.93407466,128.89,128.87,3.88]
[1725454452802,0.05447466,128.89,128.86,0.05332734]
[1725454452991,0.05447466,128.89,128.88,3.8797]
[1725454454307,0.05447466,128.89,128.86,0.05332734]
[1725454454308,23.88447466,128.89,128.86,0.05332734]
[1725454455708,27.76417466,128.89,128.86,3.93362734]